bitfinex/quotes_ETHUSD_20251118
["timestamp","ask_amount","ask_price","bid_price","bid_amount"]
[1763483983417,0.3297,3156.7,3154.5,0.4877]
[1763483983717,6.66556743,3156.4,3154.5,0.4877]
[1763483984025,0.90699264,3156.2,3154.6,0.405504]
[1763483984313,0.90699264,3156.3,3154.6,0.405504]
[1763483984500,0.90699264,3156.3,3153.6,0.1882]
[1763483984501,0.90699264,3156.3,3154.7,0.4877]
[1763483984701,0.75725601,3156.2,3154.8,0.405504]
[1763483984901,0.02913992,3156.8,3155.0,0.405504]
[1763483985277,0.02913992,3156.8,3155.2,0.405504]
[1763483985534,0.02913992,3156.9,3155.2,0.405504]
[1763483985857,0.44045926,3157.7,3156.8,0.1882]
[1763483986116,1.3474519,3157.7,3156.8,0.1882]
[1763483986316,0.80130193,3157.6,3156.8,0.1882]
[1763483986516,0.3297,3158.3,3156.8,0.6759]
[1763483986717,6.66556743,3158.4,3156.8,0.6759]
[1763483986924,0.1644,3157.8,3156.0,0.4877]
[1763483987131,2.086062,3157.7,3156.4,0.4877]
[1763483987306,0.2250462,3157.6,3156.4,0.4877]
[1763483987505,0.1644,3157.8,3156.4,0.4877]
[1763483987715,0.90699264,3157.6,3156.4,0.4877]
[1763483987893,0.1644,3157.8,3156.4,0.4877]
[1763483988617,0.02913992,3157.7,3156.4,0.4877]
[1763483988933,0.1644,3158.2,3156.5,0.405504]
[1763483989089,0.02913992,3157.7,3156.5,0.405504]
[1763483989285,0.02913992,3157.7,3155.9,0.1882]
[1763483989286,0.02913992,3157.7,3156.6,0.4877]
[1763483990029,12.04622743,3157.6,3156.4,0.1882]
[1763483990213,0.93613256,3157.5,3156.4,0.1882]
[1763483990537,1.08850074,3158.1,3156.5,0.4877]
[1763483990538,0.68299674,3158.1,3156.5,0.4877]
[1763483990831,0.02913992,3158.0,3156.5,0.4877]
[1763483991214,0.4941,3158.2,3156.5,0.4877]
[1763483991412,0.90699264,3158.0,3156.5,0.4877]
[1763483991735,0.90699264,3157.9,3156.5,0.4877]
[1763483991939,0.90699264,3157.7,3156.5,0.4877]
[1763483992240,6.522412,3157.8,3156.5,0.4877]
[1763483992241,0.74294046,3157.6,3156.5,0.4877]
[1763483992441,0.02913992,3157.6,3156.5,0.4877]
[1763483992604,0.90699264,3157.8,3156.5,0.4877]
[1763483992800,0.02913992,3157.7,3156.5,0.4877]
[1763483993108,0.90699264,3157.8,3156.5,0.4877]
[1763483993302,0.02913992,3157.7,3156.5,0.4877]
[1763483993821,0.02913992,3157.7,3156.5,0.4787126]
[1763483994435,0.90699264,3157.5,3156.4,0.1882]
[1763483994640,0.66317238,3157.4,3156.4,0.1882]
[1763483994831,0.02913992,3157.4,3156.4,0.1882]
[1763483995227,0.90699264,3157.8,3156.4,0.1882]
[1763483995630,0.1644,3158.2,3156.5,0.893204]
[1763483995829,0.02913992,3158.1,3156.6,0.4877]
[1763483996354,0.1644,3158.2,3156.6,0.4877]
[1763483997215,0.90699264,3158.0,3156.6,0.4877]
[1763483997438,0.71936816,3157.9,3156.6,0.4877]
[1763483997639,0.93613256,3157.8,3156.6,0.4877]
[1763483997948,0.02913992,3157.8,3156.6,0.4877]
[1763483998313,0.29234759,3157.9,3156.7,0.405504]
[1763483998550,0.32148751,3158.5,3157.0,0.1882]
[1763483998750,0.32148751,3158.5,3157.2,0.405504]
[1763483998751,0.02913992,3158.5,3157.2,0.405504]
[1763483999259,0.02913992,3158.5,3157.4,0.405504]
[1763483999460,0.29300036,3158.7,3157.5,0.4877]
[1763483999985,0.29300036,3158.7,3157.6,0.405504]
[1763484000284,0.002,3158.0,3157.5,0.4877]
[1763484000486,0.002,3158.0,3157.1,0.4877]
[1763484000688,3.3332,3157.6,3157.1,0.4877]
[1763484000887,3.3332,3157.4,3156.4,0.6759]
[1763484001065,0.90699264,3157.1,3156.4,0.6759]
[1763484001264,3.36233992,3157.0,3156.4,0.6759]
[1763484001487,0.90699264,3157.1,3156.4,0.6759]
[1763484001488,0.90699264,3156.9,3156.5,0.4877]
[1763484001690,0.3336,3157.9,3156.5,0.4877]
[1763484002353,0.02913992,3157.8,3156.6,0.405504]
[1763484002591,0.3336,3157.9,3156.4,0.1882]
[1763484002592,0.002,3158.0,3156.8,0.405504]
[1763484002954,0.002,3158.0,3157.0,0.405504]
[1763484003150,0.002,3158.0,3157.2,0.405504]
[1763484003394,3.36313992,3157.9,3156.4,0.1882]
[1763484003689,3.334,3157.5,3156.4,0.1882]
[1763484003888,3.334,3157.1,3156.5,0.4877]
[1763484004090,4.24099264,3157.0,3156.5,0.4877]
[1763484004296,0.02913992,3156.9,3156.4,0.1882]
[1763484004589,4.24099264,3157.0,3156.4,0.1882]
[1763484004758,4.24099264,3156.7,3156.4,0.1882]
[1763484005275,0.42409926,3156.9,3156.5,0.4877]
[1763484005276,4.24099264,3156.8,3156.5,0.4877]
[1763484005474,4.24099264,3156.8,3156.4,0.1882]
[1763484005871,4.24099264,3156.8,3156.1,0.6759]
[1763484006070,4.24099264,3156.8,3155.9,0.1882]
[1763484006269,4.24099264,3156.8,3155.8,0.001]
[1763484006270,0.90699264,3156.3,3155.8,0.001]
[1763484006471,3.334,3156.0,3155.8,0.001]
[1763484006669,4.24099264,3155.9,3155.8,0.001]
[1763484007974,0.90699264,3155.9,3155.8,0.001]
[1763484008289,4.24099264,3155.9,3155.8,0.001]
[1763484008695,4.7314919,3155.9,3155.8,0.001]
[1763484009367,0.49049926,3155.9,3155.8,0.001]
[1763484009566,0.0664,3155.9,3155.8,0.001]
[1763484010190,0.90699264,3155.9,3155.8,0.001]
[1763484010575,0.67996588,3156.1,3155.8,0.001]
[1763484010778,7.14861061,3156.7,3155.8,0.001]
[1763484010779,0.97815932,3156.9,3156.1,0.1958]
[1763484010979,0.84195932,3157.0,3156.2,0.4974]
[1763484011176,1.19785234,3157.0,3156.2,0.4974]
[1763484011510,0.84195932,3156.8,3156.2,0.4974]
[1763484011719,0.02913992,3156.9,3156.2,0.4974]
[1763484011720,0.84195932,3156.9,3156.2,0.4974]
[1763484011923,0.68040127,3157.0,3156.2,0.4974]
[1763484012219,0.87109924,3156.9,3156.1,0.1958]
[1763484012403,1.07116686,3156.9,3156.1,0.1958]
[1763484012716,0.02913992,3156.8,3156.1,0.6932]
[1763484012915,0.87109924,3156.9,3156.1,0.6932]
[1763484013217,0.87109924,3156.9,3155.9,0.4974]
[1763484013218,0.84195932,3156.8,3155.9,0.4974]
[1763484013401,0.84195932,3156.5,3155.8,0.001]
[1763484013777,1.53125234,3156.5,3155.8,0.001]
[1763484014121,0.87109924,3156.4,3155.8,0.001]
[1763484014282,0.0664,3155.9,3154.2,0.1958]
[1763484014482,0.84195932,3155.2,3154.2,0.1958]
[1763484014686,1.52236059,3155.3,3154.2,0.6932]
[1763484015007,1.52236059,3155.2,3154.2,0.1958]
[1763484015204,1.08489464,3155.1,3154.2,0.1958]
[1763484015391,0.68040127,3155.2,3154.3,0.4974]
[1763484015594,0.68040127,3155.3,3154.4,0.405504]
[1763484015795,0.84195932,3155.7,3154.3,0.4974]
[1763484016096,0.84195932,3155.8,3154.4,0.405504]
[1763484016300,0.68040127,3155.9,3154.6,0.405504]
[1763484016622,0.84195932,3157.0,3154.6,0.405504]
[1763484016781,0.84195932,3157.0,3156.0,0.1958]
[1763484017124,0.02913992,3156.9,3156.0,0.1958]
[1763484017914,0.02913992,3156.9,3156.0,0.6932]
[1763484018139,0.90699264,3156.8,3155.7,0.1958]
[1763484018448,0.02913992,3156.7,3155.7,0.1958]
[1763484018650,1.52276824,3156.8,3154.2,0.1958]
[1763484018651,0.02913992,3156.6,3154.2,0.1958]
[1763484018812,0.84195932,3156.6,3155.4,0.1958]
[1763484019347,0.84195932,3156.6,3155.5,0.4974]
[1763484019348,0.02913992,3156.5,3155.5,0.4974]
[1763484019547,3.334,3156.4,3155.5,0.4974]
[1763484019721,4.24099264,3156.3,3156.0,0.001]
[1763484019923,3.334,3156.1,3156.0,0.001]
[1763484020234,0.90699264,3156.1,3156.0,0.001]
[1763484020436,1.38908708,3156.9,3156.0,0.4916]
[1763484020437,0.25951008,3156.9,3156.0,0.4916]
[1763484020614,0.68093773,3157.1,3156.1,0.405504]
[1763484020814,0.68093773,3157.1,3156.3,0.405504]
[1763484021125,0.84195932,3157.4,3156.2,0.4906]
[1763484021126,0.02913992,3157.0,3156.2,0.4906]
[1763484021325,0.02913992,3157.3,3156.2,0.4906]
[1763484021524,3.334,3157.1,3156.2,0.4906]
[1763484021750,3.334,3156.9,3156.2,0.4906]
[1763484021956,0.84195932,3157.4,3156.3,0.405504]
[1763484022155,0.87109924,3157.5,3156.3,0.405504]
[1763484022367,0.87109924,3157.5,3156.4,0.4906]
[1763484022570,3.36313992,3157.5,3156.4,0.4906]
[1763484022772,3.334,3157.4,3156.5,0.405504]
[1763484022930,3.36313992,3157.4,3156.6,0.6819]
[1763484023265,4.24099264,3157.3,3156.6,0.6819]
[1763484023425,4.24099264,3157.3,3156.7,0.405504]
[1763484023627,3.334,3157.3,3156.7,0.896104]
[1763484023939,3.334,3157.3,3157.2,0.1913]
[1763484024161,0.002,3157.6,3157.2,0.1913]
[1763484024473,0.0012,3157.6,3156.7,0.405504]
[1763484024634,0.0012,3157.6,3156.8,0.4906]
[1763484025474,0.0012,3157.6,3156.9,0.405504]
[1763484025677,0.0012,3157.6,3157.1,0.405504]
[1763484025859,0.002,3158.0,3157.3,0.405504]
[1763484026027,0.68000437,3159.3,3157.3,0.405504]
[1763484026232,0.02913992,3159.2,3157.5,0.405504]
[1763484026535,0.68000437,3159.5,3157.7,0.405504]
[1763484026858,0.68000437,3159.7,3157.7,0.405504]
[1763484027060,0.84195932,3159.9,3157.9,0.405504]
[1763484027369,0.54593512,3159.8,3158.1,0.405504]
[1763484027577,4.254614,3159.7,3158.3,0.405504]
[1763484027774,0.84195932,3159.5,3158.2,0.6819]
[1763484027922,3.03133856,3159.4,3158.2,0.6819]
[1763484028252,1.05113866,3159.3,3158.2,0.1913]
[1763484028498,0.37113429,3159.3,3158.3,0.4906]
[1763484028786,0.1748952,3159.8,3159.2,0.1913]
[1763484029068,0.1362,3160.5,3159.2,0.1913]
[1763484029227,14.47702592,3160.4,3159.2,0.1913]
[1763484029422,0.90699264,3160.2,3159.2,0.1913]
[1763484029637,0.90699264,3160.2,3158.2,0.1913]
[1763484029638,0.90699264,3160.0,3158.5,0.4906]
[1763484029859,0.90699264,3159.8,3158.5,0.4906]
[1763484030160,0.90699264,3159.4,3158.1,0.1913]
[1763484030462,0.90699264,3159.2,3158.1,0.1913]
[1763484030660,0.02913992,3159.1,3158.1,0.1913]
[1763484031557,1.24889264,3159.4,3158.1,0.1913]
[1763484031762,0.79144601,3159.3,3158.1,0.1913]
[1763484031963,0.79144601,3159.3,3158.2,0.4906]
[1763484032148,0.02913992,3159.2,3158.2,0.4906]
[1763484032373,0.02913992,3159.2,3158.1,0.1913]
[1763484032779,1.27803256,3159.2,3158.1,0.1913]
[1763484033154,1.24889264,3159.2,3158.1,0.1913]
[1763484033391,0.90699264,3159.2,3158.1,0.1913]
[1763484033559,0.80572,3159.1,3158.1,0.1913]
[1763484033975,0.80572,3159.1,3158.2,0.405504]
[1763484034174,0.02913992,3159.1,3158.2,0.896104]
[1763484034488,0.02913992,3159.6,3158.2,0.4906]
[1763484034790,0.90699264,3159.5,3158.3,0.4906]
[1763484034995,0.90699264,3159.6,3158.4,0.405504]
[1763484035291,0.90699264,3159.6,3158.3,0.4906]
[1763484035457,0.73631736,3159.5,3158.3,0.4906]
[1763484035657,0.90699264,3158.6,3157.7,0.4906]
[1763484035864,0.02913992,3158.5,3157.7,0.4906]
[1763484036087,0.90699264,3159.1,3157.7,0.4906]
[1763484036393,0.02913992,3159.0,3157.7,0.4906]
[1763484036595,0.90699264,3159.1,3157.8,0.405504]
[1763484036886,0.02913992,3159.0,3157.8,0.405504]
[1763484037050,0.90699264,3159.1,3158.0,0.405504]
[1763484037562,0.02913992,3159.0,3158.1,0.1964]
[1763484037781,0.90699264,3158.8,3158.1,0.1964]
[1763484037968,0.90699264,3159.3,3158.2,0.491]
[1763484038169,0.73631736,3159.2,3158.2,0.491]
[1763484038369,0.02913992,3159.1,3158.2,0.491]
[1763484039089,0.73831736,3159.2,3158.2,0.491]
[1763484039289,0.90699264,3158.8,3158.2,0.491]
[1763484039594,3.342,3158.7,3158.2,0.491]
[1763484039758,0.90699264,3158.4,3158.2,0.491]
[1763484039961,3.342,3158.3,3158.2,0.491]
[1763484040357,0.90699264,3158.2,3158.1,0.1964]
[1763484040758,0.42489926,3158.7,3158.2,0.405504]
[1763484040963,3.342,3158.9,3158.2,0.405504]
[1763484041164,3.342,3158.7,3158.2,0.896504]
[1763484041560,0.73831736,3159.2,3158.2,0.896504]
[1763484041561,0.73831736,3159.2,3158.4,0.405504]
[1763484041759,0.73831736,3159.2,3159.1,0.1964]
[1763484041961,0.002,3159.2,3159.1,0.1964]
[1763484042660,3.344,3159.2,3158.8,0.491]
[1763484042997,3.342,3159.0,3158.2,0.896504]
[1763484043370,3.342,3159.0,3158.3,0.491]
[1763484043562,3.76709926,3159.0,3158.3,0.491]
[1763484044303,0.90699264,3158.5,3158.1,0.1964]
[1763484044594,3.342,3158.4,3158.1,0.6874]
[1763484044961,0.42509926,3159.0,3158.2,0.896504]
[1763484045170,0.02913992,3159.1,3158.2,0.896504]
[1763484045414,0.90699264,3159.0,3158.4,0.405504]
[1763484045565,4.24899264,3159.0,3158.4,0.405504]
[1763484045765,4.24899264,3159.0,3158.6,0.405504]
[1763484045995,0.002,3159.2,3158.6,0.405504]
[1763484046295,0.002,3159.2,3159.1,0.1964]
[1763484046707,0.002,3159.2,3159.1,1.092904]
[1763484047060,6.45618097,3160.8,3159.2,0.405504]
[1763484047310,0.93613256,3160.7,3159.4,0.405504]
[1763484047624,3.342,3160.2,3159.4,0.405504]
[1763484047794,0.0012,3159.6,3159.5,0.896504]
[1763484048192,6.45618097,3161.4,3159.6,0.405504]
[1763484048394,1.58175066,3161.3,3159.6,0.896504]
[1763484048597,3.342,3160.8,3159.6,0.896504]
[1763484048923,3.342,3160.6,3159.1,0.1964]
[1763484049121,0.90699264,3160.7,3159.5,0.491]
[1763484049122,4.24899264,3160.2,3159.5,0.491]
[1763484049325,4.24899264,3160.2,3159.6,0.405504]
[1763484049633,0.42489926,3160.2,3160.0,0.1964]
[1763484049980,3.342,3160.1,3159.7,0.1964]
[1763484050185,0.42489926,3160.2,3159.7,0.1964]
[1763484050408,0.90699264,3160.6,3159.8,0.491]
[1763484050593,3.342,3160.3,3159.7,0.1964]
[1763484050799,3.37113992,3160.3,3159.4,0.1964]
[1763484050994,3.342,3160.3,3159.4,0.1964]
[1763484051210,0.02913992,3160.2,3159.4,0.6874]
[1763484051410,0.33711399,3160.1,3159.4,0.6874]
[1763484051610,4.24899264,3160.4,3159.5,0.896504]
[1763484052220,0.02913992,3160.3,3159.5,0.491]
[1763484052527,68.710696,3159.0,3158.1,0.1964]
[1763484052886,68.710696,3159.0,3158.2,0.1897]
[1763484053118,65.223496,3159.0,3158.2,0.1897]
[1763484054024,68.50740648,3159.0,3158.2,0.1897]
[1763484054388,0.90699264,3158.9,3158.2,0.1897]
[1763484054729,0.90699264,3158.9,3158.2,0.6807]
[1763484055301,0.90699264,3158.9,3158.3,0.405504]
[1763484055737,0.90699264,3158.9,3158.3,0.896504]
[1763484055937,0.90699264,3158.9,3158.5,0.405504]
[1763484056304,0.90699264,3158.9,3158.5,0.491]
[1763484056819,0.90699264,3158.9,3158.3,0.405504]
[1763484057031,4.19090312,3158.9,3158.2,0.1897]
[1763484057513,0.90699264,3158.9,3158.3,0.405504]
[1763484057903,1.09999264,3158.9,3158.2,0.1897]
[1763484058304,0.90699264,3158.9,3158.2,0.1897]
[1763484059734,1.09999264,3158.9,3158.2,0.1897]
[1763484060050,0.90699264,3158.9,3158.2,0.1897]
[1763484060256,1.96191957,3158.8,3158.2,0.1897]
[1763484060480,1.96191957,3158.8,3158.1,0.1931]
[1763484060608,0.90699264,3158.9,3158.2,0.405504]
[1763484060807,1.09999264,3158.9,3158.2,0.405504]
[1763484061342,0.90699264,3158.9,3158.2,0.405504]
[1763484061517,0.90699264,3158.9,3158.2,0.896504]
[1763484061918,0.90699264,3158.9,3158.2,0.405504]
[1763484062126,2.73226301,3158.9,3158.1,0.1931]
[1763484062653,0.90699264,3158.9,3158.2,0.896504]
[1763484063157,0.90699264,3158.9,3158.2,0.405504]
[1763484063317,0.4626,3158.8,3158.0,0.001]
[1763484063517,0.4846,3158.1,3158.0,0.001]
[1763484063945,5.19619264,3158.1,3158.0,0.001]
[1763484064153,6.13207633,3158.1,3158.0,0.001]
[1763484065459,6.13207633,3158.1,3157.6,0.001]
[1763484065460,3.342,3157.9,3157.6,0.001]
[1763484065759,4.55619264,3157.7,3155.8,0.001]
[1763484066084,3.342,3157.1,3156.0,0.492]
[1763484066267,3.342,3157.1,3156.0,0.001]
[1763484066554,3.342,3156.7,3156.0,0.001]
[1763484066970,4.24899264,3156.4,3156.0,0.001]
[1763484067117,3.342,3156.4,3156.0,0.001]
[1763484067339,1.39639264,3156.3,3156.0,0.001]
[1763484067743,4.24899264,3156.1,3156.0,0.001]
[1763484068160,4.73839264,3156.1,3156.0,0.001]
[1763484068457,0.90699264,3156.1,3156.0,0.001]
[1763484068801,1.39639264,3156.1,3156.0,0.001]
[1763484068946,4.73839264,3156.1,3156.0,0.001]
[1763484069146,0.90699264,3156.1,3156.0,0.001]
[1763484069545,0.1925,3156.9,3156.1,0.405504]
[1763484069746,0.1925,3156.9,3156.0,0.001]
[1763484070052,0.1925,3157.3,3156.2,0.405504]
[1763484070489,0.1925,3157.3,3156.2,0.886704]
[1763484070670,0.6819,3157.3,3156.2,0.405504]
[1763484070982,0.1925,3157.3,3156.2,0.405504]
[1763484071291,0.1917,3157.3,3156.3,0.405504]
[1763484071486,0.193,3157.7,3156.5,0.405504]
[1763484071671,0.4894,3157.6,3156.5,0.405504]
[1763484071842,0.02913992,3157.5,3156.2,0.405504]
[1763484072047,0.90699264,3157.5,3156.2,0.405504]
[1763484072370,0.4894,3157.4,3156.2,0.405504]
[1763484073970,0.4894,3157.4,3156.2,0.886704]
[1763484074705,0.4894,3157.4,3156.2,0.405504]
[1763484075263,0.4894,3157.4,3156.0,0.001]
[1763484075604,4.27813256,3157.3,3156.0,0.001]
[1763484075816,3.342,3156.9,3156.0,0.001]
[1763484075990,0.4607,3156.1,3156.0,0.001]
[1763484076304,0.9501,3156.1,3156.0,0.001]
[1763484076960,5.19909264,3156.1,3156.0,0.001]
[1763484077411,1.85709264,3156.1,3156.0,0.001]
[1763484077613,1.36769264,3156.1,3156.0,0.001]
[1763484077932,1.85709264,3156.1,3156.0,0.001]
[1763484079227,5.19909264,3156.1,3156.0,0.001]
[1763484079426,5.7190019,3156.1,3156.0,0.001]
[1763484079625,5.7190019,3156.1,3155.8,0.001]
[1763484079626,0.90699264,3156.0,3155.8,0.001]
[1763484079925,4.49529264,3155.9,3155.8,0.001]
[1763484080080,4.98469264,3155.9,3155.8,0.001]
[1763484080284,5.57499691,3155.9,3155.8,0.001]
[1763484080932,4.98469264,3155.9,3155.8,0.001]
[1763484081939,0.90699264,3155.9,3155.8,0.001]
[1763484083598,0.466,3156.7,3155.8,0.001]
[1763484083599,0.466,3156.7,3155.9,0.405504]
[1763484083896,0.02913992,3156.6,3155.8,0.001]
[1763484084117,3.342,3156.4,3155.8,0.001]
[1763484084286,4.24899264,3156.3,3155.8,0.001]
[1763484085019,4.71499264,3156.3,3155.8,0.001]
[1763484085392,4.24899264,3156.3,3155.8,0.001]
[1763484085597,0.4979,3155.9,3155.8,0.001]
[1763484085794,0.1998,3156.8,3155.9,0.405504]
[1763484085980,0.1998,3156.8,3156.0,0.405504]
[1763484086384,0.1998,3156.8,3156.1,0.1803]
[1763484086820,0.002,3157.6,3156.1,0.1803]
[1763484087026,0.70496218,3157.5,3156.3,0.405504]
[1763484087195,1.2001021,3157.5,3156.2,0.405504]
[1763484087395,0.466,3157.4,3156.2,0.405504]
[1763484087810,0.90899264,3157.6,3156.1,0.64]
[1763484087811,0.002,3157.6,3156.4,0.405504]
[1763484088016,0.466,3157.5,3156.4,0.405504]
[1763484088647,0.466,3157.5,3156.4,0.4597]
[1763484088824,0.466,3157.5,3156.2,0.405504]
[1763484088986,0.02913992,3157.4,3156.2,0.405504]
[1763484091024,0.468,3157.6,3156.4,0.405504]
[1763484091207,0.76310092,3157.6,3156.4,0.405504]
[1763484091418,0.29510092,3157.5,3156.2,0.865204]
[1763484091616,0.466,3157.4,3156.2,0.865204]
[1763484091938,0.29710092,3157.6,3156.4,0.405504]
[1763484092101,0.002,3157.6,3156.6,0.405504]
[1763484092867,0.002,3157.6,3156.8,0.405504]
[1763484093014,0.002,3157.6,3156.8,0.865204]
[1763484093627,0.466,3157.5,3156.3,0.4597]
[1763484093825,0.49513992,3157.5,3156.3,0.4597]
[1763484094024,0.49513992,3157.5,3156.4,0.405504]
[1763484094546,0.49513992,3157.5,3156.2,0.405504]
[1763484094857,0.0012,3157.6,3156.5,0.405504]
[1763484095057,0.0012,3157.6,3156.6,0.405504]
[1763484095845,0.0012,3157.6,3156.1,0.1803]
[1763484095846,4.27813256,3157.5,3156.1,0.1803]
[1763484096046,0.90699264,3157.2,3156.1,0.1803]
[1763484096219,0.32443044,3157.1,3156.1,0.1803]
[1763484096415,0.32443044,3157.1,3156.2,0.405504]
[1763484096741,0.77719052,3157.1,3156.1,0.1803]
[1763484097043,0.77719052,3157.1,3156.2,0.405504]
[1763484097247,0.29599298,3157.0,3156.2,0.405504]
[1763484097453,0.50268856,3157.0,3156.2,0.405504]
[1763484097646,0.29599298,3157.0,3156.2,0.405504]
[1763484097847,0.29599298,3157.1,3156.2,0.869304]
[1763484098353,0.29599298,3157.4,3156.4,0.405504]
[1763484098657,0.4819,3157.4,3156.4,0.405504]
[1763484098949,0.29599298,3157.4,3156.2,0.405504]
[1763484099151,0.29719298,3157.6,3156.6,0.405504]
[1763484099313,0.29719298,3157.6,3156.6,0.4638]
[1763484099515,0.29719298,3157.6,3156.7,0.405504]
[1763484099720,3.342,3157.5,3156.7,0.405504]
[1763484099919,0.29599298,3157.4,3156.3,0.405504]
[1763484100123,3.37113992,3157.3,3156.1,0.1803]
[1763484100336,3.342,3156.7,3156.2,0.405504]
[1763484100533,0.77786401,3157.2,3155.8,0.001]
[1763484100534,0.90699264,3156.1,3155.8,0.001]
[1763484100827,4.24899264,3155.9,3155.8,0.001]
[1763484101339,4.24899264,3155.9,3155.8,0.9589]
[1763484101543,4.24899264,3155.9,3155.8,0.001]
[1763484102151,3.342,3155.9,3155.8,0.9589]
[1763484102364,3.342,3156.0,3155.9,0.405504]
[1763484102525,0.90699264,3156.0,3155.9,0.405504]
[1763484102824,0.90699264,3156.0,3155.9,1.363404]
[1763484103225,0.90699264,3156.0,3155.9,0.899604]
[1763484103840,0.90699264,3156.0,3155.9,1.363404]
[1763484104433,0.90699264,3156.0,3155.9,0.899604]
[1763484104638,0.90699264,3156.0,3155.9,1.363404]
[1763484105863,3.5355,3156.9,3155.9,1.363404]
[1763484106090,0.0012,3157.6,3156.8,0.6873]
[1763484106374,3.342,3157.3,3156.8,1.092804]
[1763484106733,3.342,3157.3,3156.8,0.6873]
[1763484106954,0.90699264,3157.2,3156.5,0.598704]
[1763484107275,3.8239,3157.3,3156.5,0.598704]
[1763484107476,0.90699264,3157.2,3156.5,0.598704]
[1763484107682,0.0012,3157.6,3157.3,0.405504]
[1763484107882,0.0012,3157.6,3157.5,0.899604]
[1763484108376,0.0012,3157.6,3157.5,1.363404]
[1763484108743,3.342,3157.3,3155.8,0.001]
[1763484108945,2.87920432,3157.2,3155.8,0.001]
[1763484109141,1.82720074,3157.1,3155.8,0.001]
[1763484109383,1.77377129,3157.0,3155.8,0.001]
[1763484109543,0.1935,3155.9,3155.8,0.001]
[1763484109745,0.6513,3155.9,3155.8,0.001]
[1763484109992,0.1935,3155.9,3155.8,0.001]
[1763484110287,0.1935,3156.5,3155.8,0.001]
[1763484110585,0.4819,3156.4,3155.8,0.001]
[1763484110789,0.77808532,3156.4,3155.8,0.001]
[1763484111163,3.342,3156.1,3155.8,0.001]
[1763484111669,3.76689926,3156.1,3155.8,0.001]
[1763484111882,4.70679264,3155.9,3155.8,0.001]
[1763484112256,5.18869264,3155.9,3155.8,0.001]
[1763484112771,4.70679264,3155.9,3155.8,0.001]
[1763484113608,0.46969141,3157.2,3155.9,0.405504]
[1763484113890,0.29627787,3157.5,3155.9,0.405504]
[1763484114059,0.29627787,3157.5,3156.1,0.405504]
[1763484114555,3.342,3157.4,3156.3,0.405504]
[1763484114894,1.20327051,3157.3,3156.3,0.405504]
[1763484115076,0.4819,3157.5,3156.3,0.405504]
[1763484115487,0.0012,3157.6,3156.5,0.405504]
[1763484115695,0.90699264,3157.4,3156.5,0.405504]
[1763484115873,3.342,3157.1,3156.5,0.405504]
[1763484116208,3.342,3157.1,3156.2,0.1932]
[1763484116374,3.81508926,3157.1,3156.3,0.405504]
[1763484116575,3.342,3156.9,3156.3,0.405504]
[1763484116770,3.342,3156.9,3156.1,0.1932]
[1763484116976,0.1935,3156.8,3156.1,0.1932]
[1763484117369,3.342,3156.7,3156.1,0.1932]
[1763484117559,3.342,3156.5,3155.9,0.405504]
[1763484118466,3.3412,3156.5,3155.9,0.405504]
[1763484118796,0.1935,3156.8,3155.8,0.001]
[1763484118797,0.90699264,3156.3,3155.8,0.001]
[1763484119163,3.5355,3156.8,3156.2,0.1932]
[1763484119365,0.90699264,3156.7,3156.2,0.1932]
[1763484119569,0.47308926,3157.1,3156.2,0.1932]
[1763484119785,0.29633715,3157.1,3156.2,0.1932]
[1763484120014,0.4819,3157.2,3156.2,0.1932]
[1763484120217,0.90699264,3157.0,3156.2,0.1932]
[1763484120525,4.24899264,3157.0,3156.3,0.405504]
[1763484120880,0.1935,3156.9,3156.3,0.405504]
[1763484121116,4.24899264,3157.0,3156.3,0.405504]
[1763484121314,3.342,3157.3,3156.5,0.405504]
[1763484121619,4.24899264,3157.2,3156.5,0.405504]
[1763484121771,4.24899264,3157.2,3156.2,0.1932]
[1763484121966,4.24899264,3156.9,3155.8,0.406504]
[1763484122211,0.42489926,3157.3,3156.2,0.405504]
[1763484122414,0.90699264,3157.1,3156.4,0.405504]
[1763484122597,0.4819,3157.5,3156.4,0.405504]
[1763484122770,0.4819,3157.4,3156.2,0.405504]
[1763484123405,3.342,3157.4,3156.3,0.4638]
[1763484123611,1.20331193,3157.3,3156.3,0.4638]
[1763484123929,1.20331193,3157.3,3155.8,0.001]
[1763484123930,0.1935,3156.4,3155.8,0.001]
[1763484124075,0.93643119,3157.3,3156.4,0.405504]
[1763484124274,0.68287986,3157.7,3156.3,0.4941]
[1763484124479,0.297497,3157.6,3156.4,0.869304]
[1763484124716,0.0012,3157.6,3156.4,0.869304]
[1763484125022,0.0012,3157.6,3157.5,0.899604]
[1763484125185,0.0012,3157.6,3157.5,1.363404]
[1763484127013,0.0012,3157.6,3157.5,0.899604]
[1763484127184,0.0012,3157.6,3157.5,1.382804]
[1763484128585,0.002,3158.0,3157.6,0.405504]
[1763484128784,0.002,3158.0,3157.9,0.896204]
[1763484129284,0.002,3158.0,3157.9,1.379404]
[1763484129482,0.002,3158.0,3157.7,0.1788308]
[1763484129807,0.002,3158.0,3157.5,0.888704]
[1763484129973,0.002,3158.0,3157.5,0.4832]
[1763484130178,0.002,3158.0,3157.9,0.4907]
[1763484130612,0.002,3158.0,3157.9,0.9739]
[1763484131219,0.002,3158.0,3157.9,1.379404]
[1763484131418,0.002,3158.3,3158.0,0.405504]
[1763484131632,0.002,3158.3,3158.2,0.6846]
[1763484131920,65.223496,3159.0,3158.2,0.6846]
[1763484131921,65.223496,3159.0,3158.3,0.405504]
[1763484132071,65.223496,3159.0,3158.9,0.4907]
[1763484132524,65.223496,3159.0,3158.3,0.4832]
[1763484132679,65.223496,3159.0,3158.5,0.405504]
[1763484132877,65.223496,3159.0,3158.4,0.4832]